fUSD/lending_fUSD_20251101
["ID","MTS","AMOUNT","RATE_DAILY","PERIOD"]
[392815119,1761987815638,-150.0,0.00014872,2]
[392815120,1761987815669,-513.48315846,0.00014873,2]
[392815121,1761987815698,-500.0,0.00014873,2]
[392815122,1761987815726,-500.0,0.00014873,2]
[392815123,1761987815754,-509.03494813,0.00014873,2]
[392815124,1761987815781,-500.0,0.00014873,2]
[392815125,1761987815808,-452.07170924,0.00014873,2]
[392815126,1761987815861,-500.0,0.00014873,2]
[392815127,1761987815895,-500.0,0.00014873,2]
[392815128,1761987815925,-500.0,0.00014873,2]
[392815129,1761987815955,-1643.13771604,0.00014878,2]
[392815130,1761987815985,-154.11413848,0.00014882,2]
[392815131,1761987816014,-1200.0,0.00014884,2]
[392815132,1761987816159,-1020.4697003,0.00014885,2]
[392815133,1761987816188,-1195.2144605,0.00014885,2]
[392815134,1761987816215,-164.9257829,0.00014885,2]
[392815135,1761987816245,-1643.13771604,0.00014889,2]
[392815136,1761987816327,-4949.03,0.0001489,2]
[392815137,1761987816467,-101.95,0.0001489,2]
[392815138,1761987816498,-248.71531821,0.00014891,2]
[392815139,1761987816529,-174.13,0.00014894,2]
[392815140,1761987816557,-209.20156251,0.00014899,2]
[392815141,1761987816589,-500.0,0.00014899,2]
[392815142,1761987816620,-500.0,0.00014899,2]
[392815143,1761987816648,-168.3399778,0.00014899,2]
[392815144,1761987816680,-500.0,0.00014899,2]
[392815145,1761987816710,-500.0,0.00014899,2]
[392815146,1761987816745,-500.0,0.00014899,2]
[392815147,1761987816775,-500.0,0.00014899,2]
[392815148,1761987816805,-500.0,0.00014899,2]
[392815149,1761987816842,-500.0,0.00014899,2]
[392815150,1761987816972,-500.0,0.00014899,2]
[392815151,1761987817003,-500.0,0.00014899,2]
[392815152,1761987817034,-500.0,0.00014899,2]
[392815153,1761987817066,-500.0,0.00014899,2]
[392815154,1761987817099,-500.0,0.00014899,2]
[392815155,1761987817131,-500.0,0.00014899,2]
[392815156,1761987817165,-500.0,0.00014899,2]
[392815157,1761987817196,-542.77506249,0.00014899,2]
[392815158,1761987817228,-500.0,0.00014899,2]
[392815159,1761987817261,-414.45987502,0.00014899,2]
[392815160,1761987818533,-85.54012498,0.00014899,2]
[392815161,1761987818543,-160.33362503,0.00014899,2]
[392815162,1761987818570,-195.33628296,0.00014899,2]
[392815164,1761987818599,-144.33009201,0.00014899,2]
[392815165,1761987818608,-355.66990799,0.000149,2]
[392815166,1761987818622,-500.0,0.000149,2]
[392815167,1761987818636,-500.0,0.000149,2]
[392815168,1761987818650,-500.0,0.000149,2]
[392815169,1761987818674,-500.0,0.000149,2]
[392815170,1761987818691,-500.0,0.000149,2]
[392815171,1761987818705,-500.0,0.000149,2]
[392815172,1761987818730,-542.77506249,0.000149,2]
[392815173,1761987818743,-500.0,0.000149,2]
[392815174,1761987818758,-500.0,0.000149,2]
[392815175,1761987819057,-10000.01,0.000149,2]
[392815176,1761987819071,-10000.01,0.000149,2]
[392815177,1761987819089,-10000.01,0.000149,2]
[392815178,1761987819103,-10000.01,0.000149,2]
[392815179,1761987819120,-10000.01,0.000149,2]
[392815180,1761987819134,-10000.01,0.000149,2]
[392815181,1761987819148,-10000.01,0.000149,2]
[392815182,1761987819165,-10000.01,0.000149,2]
[392815183,1761987819179,-10000.01,0.000149,2]
[392815185,1761987821098,-10000.01,0.000149,2]
[392815186,1761987821509,-10000.01,0.000149,2]
[392815187,1761987821632,-10000.01,0.000149,2]
[392815188,1761987821809,-10000.01,0.000149,2]
[392815189,1761987821940,-10000.01,0.000149,2]
[392815190,1761987822359,-10000.01,0.000149,2]
[392815191,1761987822540,-10000.01,0.000149,2]
[392815192,1761987822817,-10000.01,0.000149,2]
[392815193,1761987822830,-10000.01,0.000149,2]
[392815194,1761987823387,-10000.01,0.000149,2]
[392815195,1761987824563,-10000.01,0.000149,2]
[392815196,1761987824730,-10000.01,0.000149,2]
[392815197,1761987824847,-10000.01,0.000149,2]
[392815198,1761987824977,-10000.01,0.000149,2]
[392815199,1761987825199,-2620.05157384,0.000149,2]
[392815200,1761987825230,-588.286,0.000149,2]
[392815201,1761987825259,-1643.13771604,0.000149,2]
[392815202,1761987825288,-147.05942024,0.000149,2]
[392815203,1761987825351,-2.94057976,0.000149,2]
[392815204,1761987826024,-176.7,0.000149,2]
[392815205,1761987826051,-176.7,0.000149,2]
[392815206,1761987826078,-415.29,0.000149,2]
[392815210,1761987840779,1008.86,7.05e-05,2]
[392815211,1761987840947,1008.86,7.421e-05,2]
[392815212,1761987841145,1008.86,7.792e-05,2]
[392815213,1761987841341,1008.86,8.163e-05,2]
[392815214,1761987841536,1008.86,8.534e-05,2]
[392815217,1761987841745,1008.86,8.905e-05,2]
[392815218,1761987841944,1008.86,9.276e-05,2]
[392815219,1761987842148,1008.86,9.647e-05,2]
[392815220,1761987842350,1008.86,0.00010018,2]
[392815221,1761987842530,1008.86,0.00010389,2]
[392815222,1761987842769,1008.86,0.0001076,2]
[392815223,1761987842970,1008.86,0.00011131,2]
[392815224,1761987843375,1008.86,0.00011502,2]
[392815225,1761987843481,1008.86,0.00011873,2]
[392815226,1761987843904,1008.86,0.00012244,2]
[392815227,1761987844105,1008.86,0.00012615,2]
[392815228,1761987844299,1008.86,0.00012986,2]
[392815229,1761987844490,1008.86,0.00013357,2]
[392815232,1761987857349,-413.96019378,0.00013729,2]
[392815233,1761987862768,-290.44282029,0.00013729,2]
[392815234,1761987862806,-304.45698593,0.00013729,2]
[392815241,1761987908646,150.0,0.00013488,2]
[392815242,1761987908940,150.0,0.00013488,2]
[392815243,1761987909083,150.0,0.00013488,2]
[392815246,1761987913910,150.0,0.00013488,2]
[392815247,1761987916575,150.0,0.00013488,2]
[392815248,1761987916802,150.0,0.00013488,2]
[392815252,1761987927851,150.0,0.00013488,2]
[392815253,1761987927996,150.0,0.00013488,2]
[392815254,1761987930948,150.0,0.00013488,2]
[392815258,1761988022411,-150.0,0.00013787,2]
[392815259,1761988022433,-150.0,0.00013787,2]
[392815260,1761988022458,-161.63670324,0.00013857,2]
[392815261,1761988022577,1555.78,0.00030136,120]
[392815262,1761988022824,1555.78,0.0003041,120]
[392815263,1761988023065,1555.78,0.00030684,120]
[392815264,1761988023302,1555.78,0.00030958,120]
[392815265,1761988023530,1555.78,0.00031232,120]
[392815266,1761988023779,1555.78,0.00031506,120]
[392815267,1761988032111,500.0,0.00030136,120]
[392815268,1761988032339,500.0,0.0003041,120]
[392815269,1761988032568,500.0,0.00030684,120]
[392815270,1761988032826,262.19149377,0.00030958,120]
[392815271,1761988041364,-12.93329676,0.00013857,2]
[392815272,1761988041394,-300.0,0.00013885,2]
[392815273,1761988041422,-200.0,0.00013984,2]
[392815274,1761988041450,-150.0,0.00013987,2]
[392815275,1761988041482,-253.47235018,0.00013999,2]
[392815276,1761988041509,-2000.0,0.00014,2]
[392815277,1761988041537,-150.0,0.00014087,2]
[392815278,1761988041565,-150.0,0.00014087,2]
[392815279,1761988041594,-1008.86,0.000141,2]
[392815280,1761988041621,-150.0,0.00014237,2]
[392815281,1761988041648,-150.0,0.00014387,2]
[392815282,1761988041676,-150.0,0.00014387,2]
[392815283,1761988041926,-150.0,0.000144,2]
[392815284,1761988041955,-96.00635596,0.00014445,2]
[392815285,1761988042103,-157.4659942,0.00014445,2]
[392815286,1761988042130,-300.0,0.00014478,2]
[392815287,1761988042157,-150.0,0.00014478,2]
[392815288,1761988042187,-150.0,0.00014487,2]
[392815289,1761988042215,-168.45,0.000145,2]
[392815290,1761988042242,-150.0,0.000145,2]
[392815291,1761988042270,-174.57,0.00014627,2]
[392815292,1761988042298,-150.0,0.00014687,2]
[392815293,1761988042325,-150.0,0.00014687,2]
[392815294,1761988042352,-743.08918968,0.000147,2]
[392815295,1761988042378,-500.0,0.00014773,2]
[392815296,1761988042408,-893.09678367,0.00014773,2]
[392815297,1761988042435,-300.0,0.00014798,2]
[392815298,1761988042465,-500.0,0.00014799,2]
[392815299,1761988042494,-500.0,0.00014799,2]
[392815300,1761988042663,-500.0,0.00014799,2]
[392815301,1761988042694,-500.0,0.00014799,2]
[392815302,1761988042725,-254.27750625,0.00014799,2]
[392815303,1761988042755,-345.9680587,0.00014799,2]
[392815304,1761988043395,-201.2360649,0.000148,2]
[392815305,1761988043410,-6799.5188701,0.000148,2]
[392815306,1761988043424,-10000.01,0.000148,2]
[392815307,1761988043437,-10000.01,0.000148,2]
[392815308,1761988043451,-10000.01,0.000148,2]
[392815309,1761988043484,-10000.01,0.000148,2]
[392815310,1761988043504,-10000.01,0.000148,2]
[392815311,1761988043530,-10000.01,0.000148,2]
[392815312,1761988044249,-10000.01,0.000148,2]
[392815313,1761988044377,-10000.01,0.000148,2]
[392815314,1761988044504,-10000.01,0.000148,2]
[392815315,1761988044611,-10000.01,0.000148,2]
[392815316,1761988044732,-10000.01,0.000148,2]
[392815317,1761988044852,-10000.01,0.000148,2]
[392815318,1761988044980,-10000.01,0.000148,2]
[392815319,1761988045138,-10000.01,0.000148,2]
[392815320,1761988045283,-10000.01,0.000148,2]
[392815337,1761988175699,500.0,0.00030136,120]
[392815338,1761988175922,500.0,0.0003041,120]
[392815339,1761988176157,500.0,0.00030684,120]
[392815340,1761988176652,500.0,0.00030958,120]
[392815341,1761988176719,500.0,0.00031232,120]
[392815342,1761988176879,186.3266672,0.00031506,120]
[392815345,1761988213879,-304.59553421,0.00014,2]
[392815346,1761988213913,-508.87,0.00014033,2]
[392815347,1761988213955,-226.67353758,0.0001425,2]
[392815348,1761988213988,-259.05547152,0.0001425,2]
[392815349,1761988214031,-404.36940008,0.0001425,2]
[392815350,1761988214069,-253.47235016,0.00014673,2]
[392815351,1761988214107,-500.0,0.00014773,2]
[392815352,1761988214144,-300.0,0.00014798,2]
[392815353,1761988214179,-1200.0,0.00014798,2]
[392815354,1761988214212,-500.0,0.00014799,2]
[392815355,1761988214248,-190.82323287,0.00014799,2]
[392815356,1761988214281,-237.78375784,0.00014799,2]
[392815357,1761988214315,-78.72343148,0.00014799,2]
[392815358,1761988214446,-71.27656852,0.00014799,2]
[392815359,1761988214484,-500.0,0.00014799,2]
[392815360,1761988214522,-500.0,0.00014799,2]
[392815361,1761988214560,-500.0,0.00014799,2]
[392815362,1761988215023,-71.27656852,0.000148,2]
[392815363,1761988215060,-6857.45686296,0.000148,2]
[392815364,1761988215076,-10000.01,0.000148,2]
[392815365,1761988215116,-10000.01,0.000148,2]
[392815366,1761988215148,-10000.01,0.000148,2]
[392815367,1761988215178,-10000.01,0.000148,2]
[392815368,1761988215210,-10000.01,0.000148,2]
[392815369,1761988215224,-10000.01,0.000148,2]
[392815370,1761988215239,-10000.01,0.000148,2]
[392815371,1761988216763,-2525.49,0.0001479,2]
[392815372,1761988216797,-4949.03,0.000148,2]
[392815373,1761988216929,-10000.01,0.000148,2]
[392815374,1761988217080,-10000.01,0.000148,2]
[392815375,1761988217191,-10000.01,0.000148,2]
[392815376,1761988217307,-10000.01,0.000148,2]
[392815377,1761988217399,-10000.01,0.000148,2]
[392815378,1761988217504,-10000.01,0.000148,2]
[392815379,1761988217652,-10000.01,0.000148,2]
[392815380,1761988217767,-10000.01,0.000148,2]
[392815382,1761988217936,-10000.01,0.000148,2]
[392815385,1761988224991,500.0,0.00030136,120]
[392815386,1761988225254,500.0,0.0003041,120]
[392815387,1761988225499,500.0,0.00030684,120]
[392815388,1761988225735,500.0,0.00030958,120]
[392815389,1761988225968,500.0,0.00031232,120]
[392815390,1761988226242,500.0,0.00031506,120]
[392815392,1761988231331,-500.0,0.00014773,2]
[392815393,1761988231340,-91121.17163352,0.000148,2]
[392815394,1761988231350,-154.11413848,0.00014886,2]
[392815395,1761988231359,-424.1,0.000149,2]
[392815396,1761988231369,-697.54,0.000149,2]
[392815397,1761988231378,-485.32,0.000149,2]
[392815398,1761988231387,-500.0,0.00014973,2]
[392815399,1761988231398,-500.0,0.00014973,2]
[392815400,1761988231407,-507.70999988,0.00014973,2]
[392815401,1761988231417,-505.23321561,0.00014973,2]
[392815402,1761988231427,-500.0,0.00014973,2]
[392815403,1761988231437,-500.0,0.00014973,2]
[392815404,1761988231450,-207.74721825,0.00014973,2]
[392815405,1761988231460,-164.34626945,0.00014973,2]
[392815406,1761988231470,-248.71531821,0.00014973,2]
[392815407,1761988231479,-21297.24,0.00014973,2]
[392815408,1761988231489,-1681.3236374,0.00014973,2]
[392815409,1761988231500,-14058.2663626,0.00014973,2]
[392815410,1761988231510,-220.29140277,0.00014986,2]
[392815411,1761988231521,-154.12747994,0.00014986,2]
[392815412,1761988231531,-150.0,0.00014986,2]
[392815413,1761988231540,-265.86557999,0.00014986,2]
[392815414,1761988231549,-150.0,0.00014986,2]
[392815415,1761988231559,-155.68041543,0.00014986,2]
[392815416,1761988231568,-187.47255689,0.00014986,2]
[392815417,1761988231577,-196.79536876,0.00014986,2]
[392815418,1761988231587,-150.0,0.00014986,2]
[392815419,1761988231597,-2525.49,0.0001499,2]
[392815420,1761988231606,-322.6107,0.00014991,2]
[392815421,1761988231615,-607.21212119,0.00014991,2]
[392815422,1761988231624,-151.0,0.00014991,2]
[392815423,1761988231634,-514.84070869,0.00014991,2]
[392815424,1761988231646,-151.0,0.00014991,2]
[392815425,1761988231656,-151.0,0.00014991,2]
[392815427,1761988231666,-203.01934976,0.00014991,2]
[392815429,1761988231675,-151.0,0.00014991,2]
[392815431,1761988231685,-500.0,0.00014991,2]
[392815433,1761988231694,-449.33228507,0.00014991,2]
[392815435,1761988231704,-151.0,0.00014991,2]
[392815437,1761988231713,-151.0,0.00014991,2]
[392815439,1761988231722,-151.0,0.00014991,2]
[392815441,1761988231731,-151.0,0.00014991,2]
[392815443,1761988231740,-151.0,0.00014991,2]
[392815445,1761988231750,-151.0,0.00014991,2]
[392815447,1761988231759,-151.0,0.00014991,2]
[392815448,1761988231769,-151.0,0.00014991,2]
[392815450,1761988231779,-151.0,0.00014991,2]
[392815452,1761988231789,-204.81248753,0.00014991,2]
[392815454,1761988231798,-151.0,0.00014991,2]
[392815456,1761988231808,-151.0,0.00014991,2]
[392815458,1761988231818,-151.0,0.00014991,2]
[392815460,1761988231828,-151.0,0.00014991,2]
[392815462,1761988231837,-151.0,0.00014991,2]
[392815465,1761988231849,-151.0,0.00014991,2]
[392815466,1761988231858,-151.0,0.00014991,2]
[392815468,1761988231868,-151.0,0.00014991,2]
[392815470,1761988231877,-151.0,0.00014991,2]
[392815472,1761988231886,-151.0,0.00014991,2]
[392815474,1761988231895,-151.0,0.00014991,2]
[392815476,1761988231904,-151.0,0.00014991,2]
[392815478,1761988231914,-151.0,0.00014991,2]
[392815480,1761988231923,-151.0,0.00014991,2]
[392815482,1761988231932,-151.0,0.00014991,2]
[392815484,1761988231941,-151.0,0.00014991,2]
[392815486,1761988231950,-151.0,0.00014991,2]
[392815488,1761988231959,-151.0,0.00014991,2]
[392815490,1761988231969,-151.0,0.00014991,2]
[392815492,1761988231978,-151.0,0.00014991,2]
[392815494,1761988231987,-151.0,0.00014991,2]
[392815496,1761988231996,-151.0,0.00014991,2]
[392815498,1761988232006,-151.0,0.00014991,2]
[392815500,1761988232018,-151.0,0.00014991,2]
[392815502,1761988232027,-151.0,0.00014991,2]
[392815504,1761988232037,-151.0,0.00014991,2]
[392815507,1761988232047,-151.0,0.00014991,2]
[392815509,1761988232059,-1142.61,0.00014991,2]
[392815511,1761988232068,-168.0,0.00014998,2]
[392815513,1761988232079,-152.0,0.00014999,2]
[392815514,1761988232088,-153.54960491,0.00014999,2]
[392815516,1761988232098,-1011.74166162,0.00014999,2]
[392815517,1761988232108,-158.81669949,0.00014999,2]
[392815518,1761988232117,-1000.0,0.00014999,2]
[392815519,1761988232127,-500.0,0.00014999,2]
[392815520,1761988232136,-500.0,0.00014999,2]
[392815521,1761988232145,-500.0,0.00014999,2]
[392815522,1761988232154,-189.26097658,0.00014999,2]
[392815523,1761988232163,-150.0,0.00014999,2]
[392815524,1761988232173,-295.33139851,0.00014999,2]
[392815525,1761988232182,-150.0,0.00014999,2]
[392815526,1761988232191,-150.0,0.00014999,2]
[392815527,1761988232201,-150.0,0.00014999,2]
[392815528,1761988232211,-150.0,0.00014999,2]
[392815529,1761988232220,-150.0,0.00014999,2]
[392815530,1761988232229,-150.0,0.00014999,2]
[392815531,1761988232238,-150.4129963,0.00014999,2]
[392815532,1761988232247,-500.0,0.00014999,2]
[392815533,1761988232257,-500.0,0.00014999,2]
[392815534,1761988232267,-500.0,0.00014999,2]
[392815535,1761988232277,-205.38813465,0.00014999,2]
[392815536,1761988232287,-150.0,0.00014999,2]
[392815537,1761988232295,-150.0,0.00014999,2]
[392815538,1761988232305,-150.0,0.00014999,2]
[392815539,1761988232314,-500.0,0.00014999,2]
[392815540,1761988232323,-500.0,0.00014999,2]
[392815541,1761988232333,-500.0,0.00014999,2]
[392815542,1761988232342,-500.0,0.00014999,2]
[392815543,1761988232352,-500.0,0.00014999,2]
[392815544,1761988232362,-500.0,0.00014999,2]
[392815545,1761988232371,-500.0,0.00014999,2]
[392815546,1761988232380,-500.0,0.00014999,2]
[392815547,1761988232389,-626.15434091,0.00014999,2]
[392815548,1761988232399,-500.0,0.00014999,2]
[392815549,1761988232408,-500.0,0.00014999,2]
[392815550,1761988232418,-500.0,0.00014999,2]
[392815551,1761988232436,-500.0,0.00014999,2]
[392815552,1761988232448,-500.0,0.00014999,2]
[392815553,1761988232458,-500.0,0.00014999,2]
[392815554,1761988232467,-500.0,0.00014999,2]
[392815555,1761988232477,-500.0,0.00014999,2]
[392815556,1761988232486,-500.0,0.00014999,2]
[392815557,1761988232497,-500.0,0.00014999,2]
[392815558,1761988232736,-500.0,0.00014999,2]
[392815559,1761988232746,-345.92808519,0.00014999,2]
[392815560,1761988232755,-150.0,0.00014999,2]
[392815561,1761988232765,-150.0,0.00014999,2]
[392815562,1761988232774,-200.0,0.00014999,2]
[392815563,1761988232784,-150.0,0.00014999,2]
[392815564,1761988232793,-150.0,0.00014999,2]
[392815565,1761988232802,-500.0,0.00014999,2]
[392815566,1761988232811,-155.0,0.00014999,2]
[392815567,1761988232821,-500.0,0.00014999,2]
[392815568,1761988232830,-500.0,0.00014999,2]
[392815569,1761988232840,-500.0,0.00014999,2]
[392815570,1761988232849,-500.0,0.00014999,2]
[392815571,1761988232858,-486.20088814,0.00014999,2]
[392815572,1761988232868,-512.63502965,0.00014999,2]
[392815573,1761988232877,-354.05632821,0.00014999,2]
[392815574,1761988232887,-150.0,0.00014999,2]
[392815575,1761988232896,-150.0,0.00014999,2]
[392815576,1761988232910,-150.0,0.00014999,2]
[392815577,1761988232921,-500.0,0.00014999,2]
[392815578,1761988232931,-284.79433076,0.00014999,2]
[392815579,1761988232940,-150.0,0.00014999,2]
[392815580,1761988232950,-150.0,0.00014999,2]
[392815581,1761988232959,-588.74840444,0.00014999,2]
[392815582,1761988232969,-671.01388889,0.00014999,2]
[392815583,1761988232979,-666.0,0.00014999,2]
[392815584,1761988232990,-666.0,0.00014999,2]
[392815585,1761988232999,-4413.0,0.00015,2]
[392815586,1761988233013,-58439.12333391,0.00015,2]
[392815587,1761988233028,-39692.91915156,0.00015,2]
[392815588,1761988233040,-46846.20143983,0.00015,2]
[392815589,1761988233060,-396.09815507,0.00015,2]
[392815590,1761988233072,-530.77777805,0.00015,2]
[392815591,1761988233084,-33221.136336,0.00015,2]
[392815592,1761988233102,-23400.66158989,0.00015,2]
[392815593,1761988237377,-500.0,0.00014999,2]
[392815594,1761988237387,-210.91861827,0.00014999,2]
[392815595,1761988237396,-150.0,0.00014999,2]
[392815596,1761988237406,-150.0,0.00014999,2]
[392815597,1761988237416,-2688872.82413424,0.00015,2]
[392815598,1761988237485,-20221.89412248,0.00015,2]
[392815599,1761988237496,-2121.81246256,0.00015,2]
[392815600,1761988237507,-25741.12899384,0.00015,2]
[392815601,1761988237518,-4350.65478954,0.00015,2]
[392815653,1761988239546,-1.6e-07,0.00014999,2]
[392815656,1761988239563,-499.99999984,0.00014999,2]
[392815658,1761988239573,-16061.50000016,0.00015,2]
[392815695,1761988239836,-94316.43310327,0.00015,2]
[392815698,1761988239850,-2914.48607763,0.00015,2]
[392815702,1761988239864,-2568.30826733,0.00015,2]
[392815790,1761988260087,1166.84,0.00030136,120]
[392815791,1761988260309,1166.84,0.0003041,120]
[392815792,1761988260561,1166.84,0.00030684,120]
[392815793,1761988260786,1166.84,0.00030958,120]
[392815794,1761988261021,1166.84,0.00031232,120]
[392815795,1761988261238,1166.84,0.00031506,120]
[392815796,1761988301189,500.0,0.00030136,120]
[392815797,1761988301740,500.0,0.0003041,120]
[392815798,1761988301952,500.0,0.00030684,120]
[392815799,1761988302190,500.0,0.00030958,120]
[392815800,1761988302481,500.0,0.00031232,120]
[392815801,1761988302737,500.0,0.00031506,120]
[392815802,1761988303398,500.0,0.00030136,120]
[392815803,1761988303623,500.0,0.0003041,120]
[392815804,1761988303846,500.0,0.00030684,120]
[392815805,1761988304069,500.0,0.00030958,120]
[392815806,1761988304295,500.0,0.00031232,120]
[392815807,1761988304522,500.0,0.00031506,120]
[392815808,1761988364539,150.0,0.00014033,120]
[392815810,1761988400965,500.0,0.00026,120]
[392815834,1761988509993,875.13,0.00030136,120]
[392815836,1761988510223,875.13,0.0003041,120]
[392815837,1761988510473,875.13,0.00030684,120]
[392815838,1761988510711,875.13,0.00030958,120]
[392815841,1761988510951,875.13,0.00031232,120]
[392815842,1761988511280,875.13,0.00031506,120]
[392815878,1761988529568,-150.0,0.00014033,2]
[392815879,1761988529597,-300.0,0.00014101,2]
[392815880,1761988529624,-250.0,0.00014169,2]
[392815881,1761988529651,-300.0,0.00014305,2]
[392815882,1761988529678,-221.6410156,0.0001465,2]
[392815883,1761988529708,-500.0,0.00014673,2]
[392815884,1761988529735,-500.0,0.00014673,2]
[392815885,1761988529764,-500.0,0.00014673,2]
[392815886,1761988529792,-1200.0,0.00014698,2]
[392815887,1761988529820,-300.0,0.00014698,2]
[392815888,1761988529847,-275.92,0.00014699,2]
[392815889,1761988529877,-500.0,0.00014699,2]
[392815890,1761988529992,-500.0,0.00014699,2]
[392815891,1761988530023,-210.91861827,0.00014699,2]
[392815892,1761988530054,-500.0,0.00014699,2]
[392815893,1761988530083,-150.0,0.00014699,2]
[392815894,1761988530117,-500.0,0.00014699,2]
[392815895,1761988530396,-4.8779688,0.000147,2]
[392815896,1761988530421,-6278.16276346,0.000147,2]
[392815897,1761988530434,-10000.0,0.000147,2]
[392815898,1761988530462,-10000.0,0.000147,2]
[392815899,1761988530501,-10000.0,0.000147,2]
[392815900,1761988530517,-10000.0,0.000147,2]
[392815901,1761988530534,-10000.0,0.000147,2]
[392815902,1761988530558,-10000.0,0.000147,2]
[392815908,1761988596065,-359.5475749,0.00013699,2]
[392815909,1761988597602,-271.48907228,0.00013699,2]
[392815913,1761988649334,321.18109794,0.00030136,120]
[392815916,1761988739234,656.34,0.00030136,120]
[392815917,1761988739487,656.34,0.0003041,120]
[392815918,1761988739710,656.34,0.00030684,120]
[392815919,1761988739939,656.34,0.00030958,120]
[392815920,1761988740192,656.34,0.00031232,120]
[392815921,1761988740437,656.34,0.00031506,120]
[392815944,1761988923166,500.0,0.00030136,120]
[392815945,1761988923400,394.26461133,0.0003041,120]
[392815946,1761988940306,10000.0,0.000315,120]
[392815948,1761988985467,500.0,0.00030136,120]
[392815949,1761988985727,500.0,0.0003041,120]
[392815950,1761988986012,500.0,0.00030684,120]
[392815951,1761988986244,500.0,0.00030958,120]
[392815952,1761988986812,500.0,0.00031232,120]
[392815953,1761988987045,500.0,0.00031506,120]
[392815954,1761988999381,500.0,0.00025067,120]
[392815955,1761989009981,-117.15335282,0.00013699,2]
[392815956,1761989010004,-638.38544666,0.00013784,2]
[392815957,1761989011855,-679.91429074,0.00013784,2]
[392815958,1761989012208,-459.5802626,0.00013784,2]
[392815959,1761989013138,561.41402814,0.00013774,2]
[392815962,1761989048679,-172.37,0.00013699,2]
[392815963,1761989048701,-112.31463361,0.00013774,2]
[392815964,1761989060273,-339.00080313,0.000137,2]
[392815965,1761989063734,-191.91368209,0.000137,2]
[392815966,1761989067012,-469.03659043,0.000137,2]
[392815967,1761989068549,-604.42687947,0.000137,2]
[392815968,1761989071734,-582.22,0.000137,2]
[392815969,1761989074413,-250.0,0.000137,2]
[392815970,1761989078265,-181.10314797,0.000137,2]
[392815971,1761989081665,-181.47555507,0.000137,2]
[392815972,1761989083600,-370.48060137,0.000137,2]
[392815973,1761989087108,-931.49,0.000137,2]
[392815974,1761989090387,-931.49,0.000137,2]
[392815975,1761989092522,-150.0,0.00013643,2]
[392815976,1761989092544,-22.11552105,0.000137,2]
[392815977,1761989094232,-473.14297785,0.000137,2]
[392815978,1761989095788,-282.53318606,0.000137,2]
[392815979,1761989099552,-187.18743939,0.000137,2]
[392815980,1761989101766,-250.0,0.00013699,2]
[392815981,1761989104878,-50.0,0.00013699,2]
[392815982,1761989104907,-264.51,0.00013699,2]
[392815983,1761989108333,150.0,0.00013488,2]
[392815984,1761989108391,150.0,0.00013488,2]
[392815985,1761989108628,150.0,0.00013488,2]
[392815986,1761989108736,-358.89203593,0.00013699,2]
[392815987,1761989110010,820.24939735,0.0003,120]